{"text_format":"3","workbook":"xlsx","n_sheets":2,"sheets":["Išlaidos","Kategorija"],"not_rendered":{"defined_names":5},"read":"whole","date_system":"1900"}

{"sheet":"Išlaidos","index":0,"n_rows":25,"n_cols":7,"rows_kept":25,"merged":[[0,1,0,5],[1,1,1,5]]}
[null,"IŠLAIDŲ BIUDŽETAS",{"$nulls":4},{"$f":"TODAY()","v":{"v":44579,"d":"4457900.00%"}}]
[null,"Įmonės pavadinimas"]
[null,"Išlaidos","Kategorija","Biudžetas","Faktinės","Skirtumas (EUR)","Skirtumas (%)"]
[null,"Reklama","Veikla",null,null,{"$f":"IFERROR(SUM(Išlaidos[[#This Row],[Biudžetas]]-Išlaidos[[#This Row],[Faktinės]]), \"\")","v":0},{"$f":"IFERROR(SUM(Išlaidos[[#This Row],[Skirtumas (EUR)]]/Išlaidos[[#This Row],[Biudžetas]]),\"\")","v":""}]
[null,"Skolos","Veikla",null,null,{"$f":"IFERROR(SUM(Išlaidos[[#This Row],[Biudžetas]]-Išlaidos[[#This Row],[Faktinės]]), \"\")","v":0},{"$f":"IFERROR(SUM(Išlaidos[[#This Row],[Skirtumas (EUR)]]/Išlaidos[[#This Row],[Biudžetas]]),\"\")","v":""}]
[null,"Privilegijos","Veikla",null,null,{"$f":"IFERROR(SUM(Išlaidos[[#This Row],[Biudžetas]]-Išlaidos[[#This Row],[Faktinės]]), \"\")","v":0},{"$f":"IFERROR(SUM(Išlaidos[[#This Row],[Skirtumas (EUR)]]/Išlaidos[[#This Row],[Biudžetas]]),\"\")","v":""}]
[null,"Tiekimas","Veikla",null,null,{"$f":"IFERROR(SUM(Išlaidos[[#This Row],[Biudžetas]]-Išlaidos[[#This Row],[Faktinės]]), \"\")","v":0},{"$f":"IFERROR(SUM(Išlaidos[[#This Row],[Skirtumas (EUR)]]/Išlaidos[[#This Row],[Biudžetas]]),\"\")","v":""}]
[null,"Paštas","Veikla",null,null,{"$f":"IFERROR(SUM(Išlaidos[[#This Row],[Biudžetas]]-Išlaidos[[#This Row],[Faktinės]]), \"\")","v":0},{"$f":"IFERROR(SUM(Išlaidos[[#This Row],[Skirtumas (EUR)]]/Išlaidos[[#This Row],[Biudžetas]]),\"\")","v":""}]
[null,"Nuoma ar būsto paskola","Veikla",null,null,{"$f":"IFERROR(SUM(Išlaidos[[#This Row],[Biudžetas]]-Išlaidos[[#This Row],[Faktinės]]), \"\")","v":0},{"$f":"IFERROR(SUM(Išlaidos[[#This Row],[Skirtumas (EUR)]]/Išlaidos[[#This Row],[Biudžetas]]),\"\")","v":""}]
[null,"Pardavimo išlaidos","Veikla",null,null,{"$f":"IFERROR(SUM(Išlaidos[[#This Row],[Biudžetas]]-Išlaidos[[#This Row],[Faktinės]]), \"\")","v":0},{"$f":"IFERROR(SUM(Išlaidos[[#This Row],[Skirtumas (EUR)]]/Išlaidos[[#This Row],[Biudžetas]]),\"\")","v":""}]
[null,"Mokesčiai","Veikla",null,null,{"$f":"IFERROR(SUM(Išlaidos[[#This Row],[Biudžetas]]-Išlaidos[[#This Row],[Faktinės]]), \"\")","v":0},{"$f":"IFERROR(SUM(Išlaidos[[#This Row],[Skirtumas (EUR)]]/Išlaidos[[#This Row],[Biudžetas]]),\"\")","v":""}]
[null,"Komunalinės paslaugos","Veikla",null,null,{"$f":"IFERROR(SUM(Išlaidos[[#This Row],[Biudžetas]]-Išlaidos[[#This Row],[Faktinės]]), \"\")","v":0},{"$f":"IFERROR(SUM(Išlaidos[[#This Row],[Skirtumas (EUR)]]/Išlaidos[[#This Row],[Biudžetas]]),\"\")","v":""}]
[null,"Kita","Veikla",null,null,{"$f":"IFERROR(SUM(Išlaidos[[#This Row],[Biudžetas]]-Išlaidos[[#This Row],[Faktinės]]), \"\")","v":0},{"$f":"IFERROR(SUM(Išlaidos[[#This Row],[Skirtumas (EUR)]]/Išlaidos[[#This Row],[Biudžetas]]),\"\")","v":""}]
[null,"Draudimas","Veikla",null,null,{"$f":"IFERROR(SUM(Išlaidos[[#This Row],[Biudžetas]]-Išlaidos[[#This Row],[Faktinės]]), \"\")","v":0},{"$f":"IFERROR(SUM(Išlaidos[[#This Row],[Skirtumas (EUR)]]/Išlaidos[[#This Row],[Biudžetas]]),\"\")","v":""}]
[null,"Palūkanos","Veikla",null,null,{"$f":"IFERROR(SUM(Išlaidos[[#This Row],[Biudžetas]]-Išlaidos[[#This Row],[Faktinės]]), \"\")","v":0},{"$f":"IFERROR(SUM(Išlaidos[[#This Row],[Skirtumas (EUR)]]/Išlaidos[[#This Row],[Biudžetas]]),\"\")","v":""}]
[null,"Telefonas","Veikla",null,null,{"$f":"IFERROR(SUM(Išlaidos[[#This Row],[Biudžetas]]-Išlaidos[[#This Row],[Faktinės]]), \"\")","v":0},{"$f":"IFERROR(SUM(Išlaidos[[#This Row],[Skirtumas (EUR)]]/Išlaidos[[#This Row],[Biudžetas]]),\"\")","v":""}]
[null,"Priežiūra ir remontas","Veikla",null,null,{"$f":"IFERROR(SUM(Išlaidos[[#This Row],[Biudžetas]]-Išlaidos[[#This Row],[Faktinės]]), \"\")","v":0},{"$f":"IFERROR(SUM(Išlaidos[[#This Row],[Skirtumas (EUR)]]/Išlaidos[[#This Row],[Biudžetas]]),\"\")","v":""}]
[null,"Išlaidos teisininkams","Veikla",null,null,{"$f":"IFERROR(SUM(Išlaidos[[#This Row],[Biudžetas]]-Išlaidos[[#This Row],[Faktinės]]), \"\")","v":0},{"$f":"IFERROR(SUM(Išlaidos[[#This Row],[Skirtumas (EUR)]]/Išlaidos[[#This Row],[Biudžetas]]),\"\")","v":""}]
[null,"Nusidėvėjimas","Veikla",null,null,{"$f":"IFERROR(SUM(Išlaidos[[#This Row],[Biudžetas]]-Išlaidos[[#This Row],[Faktinės]]), \"\")","v":0},{"$f":"IFERROR(SUM(Išlaidos[[#This Row],[Skirtumas (EUR)]]/Išlaidos[[#This Row],[Biudžetas]]),\"\")","v":""}]
[null,"Pristatymas","Veikla",null,null,{"$f":"IFERROR(SUM(Išlaidos[[#This Row],[Biudžetas]]-Išlaidos[[#This Row],[Faktinės]]), \"\")","v":0},{"$f":"IFERROR(SUM(Išlaidos[[#This Row],[Skirtumas (EUR)]]/Išlaidos[[#This Row],[Biudžetas]]),\"\")","v":""}]
[null,"Saugojimas","Veikla",null,null,{"$f":"IFERROR(SUM(Išlaidos[[#This Row],[Biudžetas]]-Išlaidos[[#This Row],[Faktinės]]), \"\")","v":0},{"$f":"IFERROR(SUM(Išlaidos[[#This Row],[Skirtumas (EUR)]]/Išlaidos[[#This Row],[Biudžetas]]),\"\")","v":""}]
[null,"Parduotuvė","Asmeninė",null,null,{"$f":"IFERROR(SUM(Išlaidos[[#This Row],[Biudžetas]]-Išlaidos[[#This Row],[Faktinės]]), \"\")","v":0},{"$f":"IFERROR(SUM(Išlaidos[[#This Row],[Skirtumas (EUR)]]/Išlaidos[[#This Row],[Biudžetas]]),\"\")","v":""}]
[null,"Pardavėjai","Asmeninė",null,null,{"$f":"IFERROR(SUM(Išlaidos[[#This Row],[Biudžetas]]-Išlaidos[[#This Row],[Faktinės]]), \"\")","v":0},{"$f":"IFERROR(SUM(Išlaidos[[#This Row],[Skirtumas (EUR)]]/Išlaidos[[#This Row],[Biudžetas]]),\"\")","v":""}]
[null,"Kita","Asmeninė",null,null,{"$f":"IFERROR(SUM(Išlaidos[[#This Row],[Biudžetas]]-Išlaidos[[#This Row],[Faktinės]]), \"\")","v":0},{"$f":"IFERROR(SUM(Išlaidos[[#This Row],[Skirtumas (EUR)]]/Išlaidos[[#This Row],[Biudžetas]]),\"\")","v":""}]
[null,"Iš viso išlaidų",null,{"$f":"IFERROR(SUM(Išlaidos[Biudžetas]), \"\")","v":0},{"$f":"IFERROR(SUM(Išlaidos[Faktinės]), \"\")","v":0},{"$f":"IFERROR(SUM(Išlaidos[Skirtumas (EUR)]), \"\")","v":0},{"$f":"IFERROR(SUM(Išlaidos[[#Totals],[Skirtumas (EUR)]]/Išlaidos[[#Totals],[Biudžetas]]),\"\")","v":""}]

{"sheet":"Kategorija","index":1,"n_rows":4,"n_cols":2,"rows_kept":4}
[null,"Kategorijų peržvalga"]
[null,"Kategorija"]
[null,"Veikla"]
[null,"Asmeninė"]